bitfinex-derivatives/quotes_ETHF0:USTF0_20250918
["timestamp","ask_amount","ask_price","bid_price","bid_amount"]
[1758221028080,0.7011,4609.8,4609.7,0.4936]
[1758221028377,1.24938932,4609.8,4609.7,0.4936]
[1758221029983,1.24938932,4609.8,4609.1,0.2888]
[1758221030280,0.1209,4610.0,4609.1,0.2888]
[1758221030281,0.7011,4609.2,4609.1,0.6957]
[1758221033780,0.1258,4609.0,4608.9,0.4936]
[1758221033983,0.8269,4609.0,4608.9,0.4936]
[1758221037679,0.8269,4609.0,4608.9,0.692]
[1758221038284,0.7011,4609.0,4608.9,0.692]
[1758221042079,0.1949,4609.0,4608.9,0.692]
[1758221042585,0.7025,4609.0,4608.9,0.692]
[1758221042881,0.8224,4609.0,4608.5,0.1161]
[1758221043289,0.8224,4609.0,4608.6,0.2904]
[1758221043485,0.55064934,4608.9,4608.3,0.2904]
[1758221043682,0.1967,4608.4,4608.3,0.2904]
[1758221043891,0.7043,4608.4,4608.3,0.4951]
[1758221044188,0.7043,4608.4,4608.3,0.6935]
[1758221045579,0.7043,4608.4,4608.3,0.4951]
[1758221045986,0.7043,4608.4,4608.3,0.6913]
[1758221050086,0.7043,4608.4,4607.7,0.0217]
[1758221050294,0.7147,4607.8,4607.7,0.0217]
[1758221050789,0.7147,4607.8,4607.7,0.506]
[1758221050981,0.7147,4607.8,4607.7,0.4843]
[1758221051588,0.7147,4607.8,4607.7,0.6805]
[1758221052688,0.2027,4608.2,4608.1,0.6805]
[1758221053081,0.7147,4608.2,4608.1,0.6805]
[1758221054483,0.7147,4608.2,4608.1,0.194]
[1758221054684,0.7147,4608.2,4608.1,0.4843]
[1758221055486,1.26381113,4608.2,4608.1,0.4843]
[1758221058093,1.26381113,4608.2,4608.1,0.6805]
[1758221058284,1.26438135,4608.2,4608.1,0.6805]
[1758221058792,0.7147,4608.2,4608.1,0.6805]
[1758221059394,0.3132,4608.7,4608.2,0.2903]
[1758221059591,1.26444912,4608.6,4608.5,0.6805]
[1758221060894,0.7147,4608.6,4608.5,0.6805]
[1758221061291,1.26454267,4608.6,4608.5,0.6805]
[1758221064291,1.26454267,4608.6,4608.5,1.18985]
[1758221064499,0.7147,4608.9,4608.8,0.6805]
[1758221064797,1.26485403,4608.9,4608.8,0.6805]
[1758221065986,0.1258,4609.5,4608.8,0.3902]
[1758221066185,0.7147,4609.4,4609.3,0.6805]
[1758221066588,0.5159,4609.9,4609.8,0.3902]
[1758221066796,1.26498686,4609.9,4609.8,0.6805]
[1758221067791,0.7147,4609.9,4609.8,0.6805]
[1758221069198,0.7147,4609.9,4609.7,0.219]
[1758221069199,0.2027,4610.4,4610.3,0.3902]
[1758221069393,0.7147,4610.4,4610.3,0.6805]
[1758221076298,0.7147,4610.4,4609.8,0.316]
[1758221076706,0.6946,4609.9,4609.8,0.5215]
[1758221077004,0.6946,4609.9,4609.8,0.7246]
[1758221078503,0.6946,4609.9,4609.1,0.316]
[1758221078700,0.1975,4609.3,4609.2,0.60944]
[1758221078899,0.6946,4609.3,4609.2,0.7246]
[1758221079798,0.6946,4609.3,4608.8,0.0216]
[1758221079799,0.1243,4609.0,4608.8,0.0216]
[1758221079999,0.6946,4608.9,4608.8,0.0216]
[1758221080210,0.6946,4608.9,4608.8,0.2055]
[1758221080504,0.6946,4608.9,4608.8,0.5215]
[1758221080900,0.1975,4608.9,4608.8,0.7246]
[1758221081101,0.6946,4608.9,4608.8,0.7246]
[1758221082703,0.1975,4608.9,4608.8,0.7246]
[1758221082903,0.2902,4609.2,4608.8,0.4086]
[1758221083098,0.2902,4609.9,4609.1,0.316]
[1758221083304,0.6946,4609.9,4609.8,0.7246]
[1758221086608,0.6946,4609.9,4609.8,0.5215]
[1758221087208,0.6946,4609.9,4609.8,0.7246]
[1758221100716,0.4902,4610.2,4610.1,0.7213]
[1758221100911,0.55087509,4610.2,4610.1,0.7213]
[1758221101116,0.4902,4610.2,4610.1,0.7213]
[1758221101322,1.24327509,4610.2,4610.1,0.5173]
[1758221101526,1.24327509,4610.2,4609.8,0.3075]
[1758221101816,0.6924,4610.2,4609.7,0.219]
[1758221102022,0.6924,4610.2,4610.1,0.5173]
[1758221102211,1.2433018,4610.2,4610.1,0.5173]
[1758221102823,1.2433018,4610.2,4610.1,0.7213]
[1758221106723,1.2433018,4610.2,4609.8,0.304]
[1758221106915,0.6941,4609.9,4609.7,0.523]
[1758221107117,0.3025,4609.8,4609.7,0.523]
[1758221107314,0.6941,4609.8,4609.7,0.7203]
[1758221107522,0.6941,4609.8,4609.7,0.9238]
[1758221110526,0.1243,4611.0,4610.3,0.4008]
[1758221110726,1.0501468,4610.9,4610.8,0.7048]
[1758221110933,0.5512468,4610.9,4610.8,0.7048]
[1758221111232,0.3025,4611.3,4610.8,0.7048]
[1758221111430,0.1964,4611.0,4610.9,0.7048]
[1758221111624,0.55108126,4611.1,4610.9,0.4008]
[1758221111830,0.4989,4611.1,4611.0,0.8225]
[1758221112030,1.04998173,4611.1,4611.0,0.8225]
[1758221113428,0.55108173,4611.1,4611.0,0.8225]
[1758221114529,0.1185,4612.5,4611.0,0.5185]
[1758221114725,0.4989,4611.8,4611.7,0.1973]
[1758221114930,1.24479,4611.8,4611.7,0.7048]
[1758221115128,1.24479,4611.8,4611.7,0.1973]
[1758221115325,0.5101,4611.5,4611.4,0.304]
[1758221115530,0.8126,4611.5,4611.4,0.5013]
[1758221115730,0.1964,4611.5,4611.4,0.7048]
[1758221116533,0.4989,4611.5,4611.4,0.7048]
[1758221117532,0.6941,4611.5,4611.4,0.7048]
[1758221118130,0.4989,4611.5,4611.4,0.7048]
[1758221119730,0.6941,4611.5,4611.4,0.7048]
[1758221121933,0.8126,4611.5,4611.1,0.304]
[1758221122237,0.8126,4611.5,4611.0,0.523]
[1758221122430,0.6941,4611.1,4611.0,0.7203]
[1758221122627,0.6941,4611.1,4611.0,0.9238]
[1758221122830,0.6941,4611.1,4611.0,0.4163]
[1758221123037,0.6941,4611.1,4611.0,0.7203]
[1758221123544,0.6941,4611.1,4611.0,0.5013]
[1758221123737,0.6941,4611.1,4611.0,0.7203]
[1758221124141,0.6941,4611.1,4611.0,1.0415]
[1758221124341,0.1964,4611.1,4611.0,1.0415]
[1758221124838,0.3025,4611.3,4611.0,1.0415]
[1758221125031,0.3025,4611.3,4611.1,0.304]
[1758221125230,0.4989,4611.3,4611.2,0.7048]
[1758221127343,0.6941,4611.3,4611.2,0.7048]
[1758221128838,0.6941,4611.3,4611.2,0.9238]
[1758221131648,0.4989,4611.3,4611.2,0.9238]
[1758221133151,0.4989,4611.6,4611.5,0.8225]
[1758221133541,0.6941,4611.6,4611.5,0.7048]
[1758221134649,0.1185,4612.5,4611.8,0.4008]
[1758221134650,0.4989,4611.9,4611.8,0.4008]
[1758221134850,0.6941,4612.4,4612.3,0.4008]
[1758221135050,0.6941,4612.4,4612.3,0.7048]
[1758221135450,1.24390411,4612.4,4612.3,0.7048]
[1758221135651,0.6941,4612.4,4612.3,0.7048]
[1758221138759,0.6941,4612.4,4612.3,0.5013]
[1758221139261,1.24438357,4612.4,4612.3,0.5013]
[1758221139457,1.24438357,4612.4,4612.3,0.1973]
[1758221140157,1.24438357,4612.4,4612.3,0.4874]
[1758221142552,1.24438357,4612.4,4612.0,0.4051]
[1758221142761,0.7202,4612.1,4612.0,0.797]
[1758221145360,1.270668,4612.1,4612.0,0.797]
[1758221146061,1.270668,4612.1,4612.0,0.9246]
[1758221149368,0.748268,4612.1,4612.0,0.9246]
[1758221150667,0.1978,4612.1,4612.0,0.9246]
[1758221150871,0.123,4614.5,4612.8,0.682]
[1758221150872,0.7202,4612.9,4612.8,0.682]
[1758221151059,1.27516645,4612.9,4612.8,0.682]
[1758221153064,1.27516645,4612.9,4611.8,0.2217]
[1758221153065,0.1978,4611.9,4611.8,0.2217]
[1758221153264,0.5149,4611.9,4611.8,0.5525]
[1758221153461,0.5149,4611.9,4611.8,0.5309]
[1758221153773,0.1978,4611.9,4611.8,0.8209]
[1758221154070,0.5304,4612.2,4612.1,0.4]
[1758221154365,0.5304,4612.2,4612.1,0.69]
[1758221154861,0.319,4612.9,4612.2,0.29]
[1758221155166,1.28874445,4612.8,4612.7,0.4923]
[1758221158268,1.28874445,4612.8,4612.5,0.0216]
[1758221158465,0.123,4613.0,4612.5,0.0216]
[1758221158466,0.4149,4612.6,4612.5,0.0216]
[1758221158766,1.28874445,4612.6,4612.5,0.0216]
[1758221160962,1.28874445,4612.6,4612.0,0.29]
[1758221161169,0.4149,4612.1,4612.0,0.69]
[1758221161463,0.319,4612.6,4612.0,0.8161]
[1758221161669,1.08563005,4612.5,4612.4,0.69]
[1758221162061,1.28913005,4612.5,4612.4,0.69]
[1758221162668,0.7339,4612.5,4612.4,0.69]
[1758221163368,1.28937264,4612.5,4612.4,0.69]
[1758221165771,1.40867264,4612.5,4612.4,0.2023]
[1758221166368,1.40867264,4612.5,4612.4,0.4955]
[1758221167273,1.28937264,4612.5,4612.4,0.6928]
[1758221169366,0.2903,4613.4,4612.6,0.2932]
[1758221169566,0.2061,4612.7,4612.6,0.7035]
[1758221169766,0.4964,4612.7,4612.6,0.7035]
[1758221169966,1.05204645,4612.7,4612.6,0.7035]
[1758221170270,1.25954645,4612.7,4612.6,0.7035]
[1758221174776,0.7039,4612.7,4612.6,0.7035]
[1758221177073,0.4964,4612.7,4612.6,0.7035]
[1758221177280,0.7039,4613.4,4613.3,0.5062]
[1758221177476,1.48821747,4613.4,4613.3,0.7035]
[1758221177676,1.25962168,4613.4,4613.3,0.7035]
[1758221180076,1.25962168,4613.4,4613.3,0.5062]
[1758221180275,1.25962168,4613.4,4613.3,0.7035]
[1758221180875,0.55572168,4613.4,4613.3,0.7035]
[1758221181075,0.4136,4613.9,4613.8,0.213]
[1758221181276,1.25901644,4613.9,4613.8,0.5062]
[1758221181876,1.25901644,4613.9,4612.0,0.1261]
[1758221182078,0.7039,4612.7,4612.6,0.92027]
[1758221182379,0.7039,4612.7,4612.2,0.3148]
[1758221182581,0.7039,4612.3,4612.2,0.2396]
[1758221182881,0.7039,4612.3,4612.2,0.218]
[1758221183081,0.7039,4612.3,4612.2,0.7242]
[1758221183283,0.7039,4612.3,4612.2,0.5062]
[1758221183474,0.7039,4612.3,4612.2,0.7242]
[1758221183874,0.7039,4612.3,4612.2,0.9215]
[1758221184378,0.4964,4613.0,4612.9,0.7035]
[1758221184579,0.7039,4613.0,4612.9,0.7035]
[1758221188375,0.5329,4613.5,4613.4,0.213]
[1758221188575,0.8232,4613.5,4613.1,0.2932]
[1758221188784,0.8232,4613.5,4613.4,0.5062]
[1758221189084,1.0879675,4613.5,4612.7,0.0216]
[1758221189279,0.2061,4612.9,4612.8,0.7035]
[1758221189471,0.4964,4612.9,4612.8,0.7035]
[1758221190177,0.4964,4612.9,4612.8,0.9215]
[1758221190978,0.4964,4613.4,4613.3,0.4103]
[1758221191173,0.4964,4613.4,4613.3,0.7035]
[1758221191379,0.2903,4613.9,4613.4,0.2932]
[1758221191583,0.7039,4613.9,4613.8,0.5062]
[1758221191783,1.25893465,4613.9,4613.8,0.5062]
[1758221195191,0.4964,4614.3,4614.2,0.7035]
[1758221195379,0.1193,4615.0,4614.2,0.7035]
[1758221195581,1.25238544,4614.9,4614.8,0.3902]
[1758221195883,1.25238544,4614.9,4614.8,0.7062]
[1758221197084,0.6977,4614.9,4614.8,0.7062]
[1758221197285,0.6977,4614.9,4614.1,0.316]
[1758221197787,0.6977,4614.3,4614.2,0.1943]
[1758221197991,0.6977,4614.3,4614.2,0.7283]
[1758221198183,0.6977,4614.3,4614.2,0.1943]
[1758221198383,0.6977,4614.3,4614.2,0.4123]
[1758221199487,0.1256,4614.0,4613.6,35.12]
[1758221199693,0.4884,4613.2,4613.1,0.7062]
[1758221199887,0.4884,4613.2,4613.1,1.14096]
[1758221200086,0.2959,4613.5,4613.1,1.14096]
[1758221200288,0.4884,4613.5,4613.4,0.7062]
[1758221200489,0.6977,4613.5,4613.4,0.7062]
[1758221200894,0.6977,4613.5,4613.4,0.9242]
[1758221201196,0.6977,4613.0,4612.9,0.7062]
[1758221201494,0.6977,4613.0,4612.9,0.9252]
[1758221202594,0.2959,4612.9,4612.7,35.1376]
[1758221202784,0.6977,4612.9,4612.8,0.219]
[1758221202989,0.6977,4612.9,4612.8,0.4133]
[1758221203692,0.4018,4613.4,4613.3,0.1943]
[1758221203894,0.1256,4614.0,4613.3,0.6092]
[1758221204093,0.1925,4613.5,4613.4,0.7062]
[1758221204294,0.4884,4613.5,4613.4,0.7062]
[1758221204891,0.6977,4613.5,4613.4,0.7062]
[1758221205096,1.25181687,4613.5,4613.4,0.7062]
[1758221205695,0.6977,4613.5,4613.4,0.7062]
[1758221205891,0.8233,4613.5,4613.4,0.1943]
[1758221207097,0.8233,4613.5,4613.4,0.4133]
[1758221208699,0.8233,4613.5,4613.4,0.219]
[1758221211203,0.8233,4613.5,4613.4,0.7293]
[1758221211404,0.8233,4613.5,4613.4,0.219]
[1758221213202,0.8233,4613.5,4613.2,0.0216]
[1758221213395,0.8233,4613.5,4613.3,0.218]
[1758221215307,0.8233,4613.5,4613.4,0.218]
[1758221215699,0.8233,4613.5,4613.4,0.4123]
[1758221216105,0.8233,4613.5,4613.4,0.218]
[1758221216407,0.8233,4613.5,4613.4,0.4244]
[1758221217003,0.8233,4613.5,4613.4,0.218]
[1758221220003,0.8233,4613.5,4613.4,0.4244]
[1758221221599,0.4884,4613.5,4613.4,0.9458]
[1758221221906,0.691,4613.5,4613.4,0.9458]
[1758221222401,0.8186,4613.5,4613.4,0.9458]
[1758221222703,0.8186,4613.5,4613.4,0.218]
[1758221224612,0.8186,4613.5,4613.4,0.7405]
[1758221225408,0.1925,4613.5,4613.4,0.9458]
[1758221225908,0.5031,4613.5,4613.4,0.9458]
[1758221226206,0.1925,4613.5,4613.4,0.9458]
[1758221226404,0.7186,4613.8,4613.7,0.6905]
[1758221226604,1.27514769,4613.8,4613.7,0.6905]
[1758221228212,1.50504308,4613.8,4613.7,0.6905]
[1758221231715,1.50533994,4613.8,4613.7,0.6905]
[1758221232618,1.50533994,4613.8,4613.5,0.0216]
[1758221232811,0.7186,4613.6,4613.5,0.0216]
[1758221233019,1.50533994,4613.6,4613.5,0.0216]
[1758221233318,1.50533994,4613.6,4613.5,0.4866]
[1758221233918,1.50533994,4613.6,4613.4,0.218]
[1758221234118,1.63303994,4613.5,4613.4,0.4099]
[1758221234318,1.63303994,4613.5,4613.4,0.7046]
[1758221235719,1.63303994,4613.5,4613.4,0.4866]
[1758221236017,1.63303994,4613.5,4613.4,0.7046]
[1758221236517,1.63303994,4613.5,4613.2,0.0216]
[1758221236719,0.96454769,4613.4,4613.3,0.218]
[1758221236913,1.27514769,4613.4,4613.3,0.218]
[1758221238019,1.27514769,4613.4,4613.3,0.4099]
[1758221238217,1.27514769,4613.4,4613.3,0.7046]
[1758221238424,1.27514769,4613.4,4613.3,0.218]
[1758221239023,1.27514769,4613.4,4613.2,0.0216]
[1758221239224,0.55654769,4613.3,4613.2,0.1046]
[1758221239519,0.55654769,4613.3,4613.2,0.083]
[1758221239716,1.27514769,4613.3,4613.2,0.083]
[1758221241318,1.27514769,4613.3,4612.6,0.2947]
[1758221241517,0.7186,4612.3,4612.2,0.6905]
[1758221241719,0.7186,4611.9,4611.8,0.4866]
[1758221241914,1.27514769,4611.9,4611.8,0.7046]
[1758221242116,0.7186,4611.9,4611.8,0.92143]
[1758221242519,0.7186,4611.9,4611.8,1.12533]
[1758221242725,0.7186,4611.9,4611.8,0.9085]
[1758221244930,0.7186,4611.9,4611.6,35.1396]
[1758221245228,0.7186,4611.7,4611.6,35.4343]
[1758221245428,0.7186,4611.7,4611.6,35.6523]
[1758221245629,0.7186,4611.7,4611.6,35.6307]
[1758221246429,0.7186,4612.1,4612.0,0.6905]
[1758221246819,0.7186,4612.1,4612.0,0.9085]
[1758221247525,0.7186,4612.1,4612.0,0.4099]
[1758221248931,0.7186,4612.1,4612.0,0.7046]
[1758221250229,0.7186,4612.1,4612.0,0.9085]
[1758221251029,0.7186,4612.9,4612.8,0.1919]
[1758221251225,0.7186,4612.9,4612.8,0.4866]
[1758221251226,1.27302496,4612.9,4612.8,0.4866]
[1758221251629,0.3106,4613.2,4612.8,0.3958]
[1758221251827,0.5061,4613.2,4613.1,0.3958]
[1758221252030,0.5061,4613.2,4613.1,0.9085]
[1758221252222,0.1955,4613.2,4613.1,0.9085]
[1758221252428,0.5061,4613.2,4613.1,0.9085]
[1758221254632,0.1955,4613.2,4613.1,0.9085]
[1758221255835,0.4884,4613.2,4613.1,0.9085]
[1758221256033,0.1955,4613.2,4613.1,0.9085]
[1758221256329,0.4909,4613.9,4613.8,0.4088]
[1758221256633,0.198,4613.9,4613.8,0.6977]
[1758221257631,0.4909,4613.9,4613.8,0.6977]
[1758221260936,0.6866,4613.9,4613.8,0.6977]
[1758221262240,0.198,4613.9,4613.8,0.6977]
[1758221263043,0.4909,4613.9,4613.8,0.6977]
[1758221263340,0.6866,4613.9,4613.8,0.4848]
[1758221263737,0.6866,4613.9,4613.8,0.6977]
[1758221268246,0.198,4613.9,4613.8,0.6977]
[1758221268541,0.6866,4614.2,4614.1,0.6977]
[1758221279054,1.24117267,4614.2,4614.1,0.6977]
[1758221279247,0.55457267,4614.2,4614.1,0.6977]
[1758221279448,0.5128,4615.0,4614.9,0.1987]
[1758221279654,0.7134,4615.0,4614.9,0.7107]
[1758221279854,1.26788109,4615.0,4614.9,0.7107]
[1758221281152,1.49609832,4615.0,4614.9,0.7107]
[1758221281453,1.49622993,4615.0,4614.9,0.7107]
[1758221281752,1.62382993,4615.0,4614.5,0.1233]
[1758221282057,0.5128,4614.1,4614.0,0.5285]
[1758221282250,0.5128,4614.1,4614.0,0.96321]
[1758221282451,0.5128,4614.1,4614.0,1.26871]
[1758221282854,0.5128,4614.1,4614.0,1.052]
[1758221284555,0.7134,4614.1,4614.0,1.052]
[1758221285449,1.26889335,4614.1,4614.0,1.052]
[1758221286158,0.76789335,4614.1,4614.0,1.052]
[1758221286362,0.55549335,4614.1,4614.0,1.052]
[1758221286556,0.3046,4614.4,4614.1,0.3008]
[1758221286859,0.3046,4614.4,4614.0,0.5478]
[1758221286860,0.5158,4614.4,4614.3,0.7]
[1758221287555,1.07140134,4614.4,4614.3,0.7]
[1758221287761,0.55560134,4614.4,4614.3,0.7]
[1758221291562,0.55560134,4614.4,4614.3,1.08989]
[1758221291762,0.55560134,4614.4,4614.3,0.7]
[1758221292063,1.67735472,4616.0,4614.3,0.3992]
[1758221292264,0.2112,4614.6,4614.5,0.5219]
[1758221292465,0.5158,4614.6,4614.5,0.8227]
[1758221292668,1.07109613,4614.6,4614.5,0.8227]
[1758221293972,0.76649613,4614.6,4614.5,0.8227]
[1758221294370,0.121,4616.0,4615.3,0.1975]
[1758221294371,0.3046,4615.4,4615.3,0.1975]
[1758221294572,0.5158,4615.4,4615.3,0.7]
[1758221294876,0.7169,4615.4,4615.3,0.7]
[1758221295068,1.27203136,4615.4,4615.3,0.7]
[1758221297276,1.27203136,4615.4,4615.3,0.4983]
[1758221297778,1.27203136,4615.4,4615.3,0.1975]
[1758221298876,1.27203136,4615.4,4615.0,0.3008]
[1758221299081,0.7169,4615.1,4615.0,0.4983]
[1758221300479,0.7169,4615.1,4615.0,0.7]
[1758221301673,0.7169,4615.1,4614.6,0.3008]
[1758221301674,0.2112,4614.7,4614.6,0.3008]
[1758221301873,0.7169,4614.7,4614.6,0.6053]
[1758221302382,0.7169,4614.7,4614.6,0.807]
[1758221303073,0.7169,4614.7,4614.6,0.7]
[1758221303276,0.7169,4614.7,4614.6,0.1975]
[1758221303669,0.7169,4614.7,4614.4,0.218]
[1758221303874,0.8353,4614.5,4614.4,0.218]
[1758221305780,0.7169,4614.5,4614.4,0.918]
[1758221307589,0.7169,4614.5,4614.4,0.7]
[1758221308176,0.8353,4614.5,4614.4,0.7]
[1758221308585,0.8353,4614.5,4614.4,0.1975]
[1758221309188,0.8353,4614.5,4614.4,0.4983]
[1758221311788,0.7169,4614.5,4614.4,0.7]
[1758221315293,0.2112,4614.5,4614.4,0.7]
[1758221315983,0.5164,4614.5,4614.4,0.7]
[1758221317893,0.7253,4614.5,4614.4,0.7]
[1758221325598,1.28007468,4614.5,4614.4,0.7]
[1758221328404,0.55477468,4614.5,4614.4,1.08988]
[1758221328598,0.3052,4615.3,4614.5,0.38988]
[1758221328797,0.7108,4615.3,4615.2,0.7099]
[1758221328998,0.55590917,4615.3,4615.2,0.7099]
[1758221329198,0.5019,4615.9,4615.8,0.3981]
[1758221329403,1.05747614,4615.9,4615.8,0.7099]
[1758221330093,1.26637614,4615.9,4615.8,0.7099]
[1758221330303,1.26607788,4615.9,4615.8,0.7099]
[1758221332206,1.26607788,4615.9,4615.3,0.218]
[1758221332400,0.7108,4615.4,4615.3,0.9279]
[1758221334004,0.5043,4615.9,4615.8,0.7152]
[1758221334206,0.5047,4615.9,4615.8,0.7152]
[1758221334397,1.05958868,4615.9,4615.8,0.7152]
[1758221335606,0.5047,4615.9,4615.8,0.7152]
[1758221337407,0.7006,4615.9,4615.8,0.7152]
[1758221337607,0.7006,4615.9,4615.8,0.2068]
[1758221338510,0.7006,4615.9,4615.8,0.5152]
[1758221338904,0.7006,4615.9,4615.8,0.7152]
[1758221339104,0.7006,4615.9,4615.8,1.10496]
[1758221339409,0.7006,4615.9,4615.8,0.7152]
[1758221340299,0.7006,4615.9,4615.6,0.218]
[1758221340503,0.3056,4615.8,4615.6,0.3084]
[1758221340705,0.395,4615.4,4615.3,0.6248]
[1758221340910,0.7006,4615.4,4615.3,0.9332]
[1758221342006,0.7006,4615.4,4615.3,0.7152]
[1758221342210,0.7006,4615.4,4615.3,0.9332]
[1758221342813,0.3056,4615.7,4615.3,0.9332]
[1758221343114,0.7006,4615.9,4615.8,0.5152]
[1758221343408,1.25497944,4615.9,4615.8,0.5152]
[1758221343711,1.25497944,4615.9,4615.6,0.218]
[1758221343909,0.7006,4615.9,4615.5,0.218]
[1758221344106,0.1167,4615.5,4615.2,0.3084]
[1758221344313,0.7006,4615.2,4615.1,0.218]
[1758221344611,0.7006,4615.2,4615.1,0.9332]
[1758221344807,0.7006,4615.2,4614.6,0.3084]
[1758221345006,0.3056,4615.1,4614.7,0.218]
[1758221345209,0.7006,4615.0,4614.9,0.4068]
[1758221345512,0.7006,4615.0,4614.9,0.7152]
[1758221346806,0.8192,4615.0,4614.6,0.3046]
[1758221347006,0.8192,4615.0,4614.7,0.218]
[1758221347313,0.8192,4615.0,4614.5,35.11]
[1758221347314,0.2976,4614.9,4614.5,35.11]
[1758221347510,0.5035,4614.7,4614.6,0.218]
[1758221347712,0.7,4614.7,4614.6,0.218]
[1758221348014,0.7,4614.7,4614.6,0.9353]
[1758221349215,0.1965,4614.7,4614.6,0.9353]
[1758221349411,0.4941,4615.0,4614.9,0.4127]
[1758221349608,0.4941,4615.0,4614.9,0.7173]
[1758221352620,0.7,4615.0,4614.9,0.7173]
[1758221353816,0.1167,4616.0,4615.0,0.1173]
[1758221354021,0.4941,4615.3,4615.2,0.7173]
[1758221354620,0.7,4615.3,4615.2,0.7173]
[1758221355523,1.2549828,4615.3,4615.2,0.7173]
[1758221356415,1.48394564,4615.3,4615.2,0.7173]
[1758221357222,1.2549828,4615.3,4615.2,0.7173]
[1758221358311,0.2976,4615.2,4614.6,0.3046]
[1758221358518,0.7,4614.7,4614.6,0.7173]
[1758221358822,0.7,4614.7,4614.6,0.9353]
[1758221359926,0.1965,4614.8,4614.7,0.7173]
[1758221360421,0.4941,4614.8,4614.7,0.7173]
[1758221360825,0.2976,4615.2,4614.8,0.3046]
[1758221361017,0.2976,4615.2,4615.1,0.7173]
[1758221361213,0.55479604,4615.2,4615.1,0.9353]
[1758221361416,0.4941,4615.5,4615.4,0.4127]
[1758221361614,0.4941,4615.5,4615.4,0.7173]
[1758221361820,0.5191,4616.0,4615.9,0.2123]
[1758221362125,1.30289538,4616.0,4615.9,0.7349]
[1758221362623,1.60049538,4616.0,4615.9,0.7349]
[1758221364630,1.60049538,4616.0,4615.9,0.9353]
[1758221365229,1.60049538,4616.0,4615.9,0.218]
[1758221367132,1.60049538,4616.0,4614.9,0.38984]
[1758221367133,0.2976,4615.1,4614.6,0.3046]
[1758221367336,0.4941,4614.7,4614.6,0.7173]
[1758221367537,0.4941,4614.7,4614.6,0.9353]
[1758221368735,0.7,4614.7,4614.6,0.9353]
[1758221368927,0.7,4614.7,4614.6,0.218]
[1758221369131,0.7,4614.7,4614.6,0.7349]
[1758221369726,0.7,4614.7,4614.6,0.9353]
[1758221371438,0.4941,4614.7,4614.6,0.9353]
[1758221371636,0.1186,4615.5,4614.7,0.3046]
[1758221371835,1.25486979,4615.4,4615.3,0.2123]
[1758221372029,1.25486979,4615.4,4615.3,0.5169]
[1758221372836,1.25486979,4615.4,4615.2,0.218]
[1758221373143,1.25486979,4615.3,4615.2,0.218]
[1758221374536,1.4860331,4615.3,4615.0,0.0216]
[1758221374743,0.7,4615.1,4615.0,0.0216]
[1758221375043,1.25486979,4615.1,4615.0,0.0216]
[1758221377842,0.3896,4614.8,4614.7,0.218]
[1758221378044,1.24996979,4614.8,4614.7,0.7208]
[1758221381148,1.24996979,4614.8,4614.7,0.9157]
[1758221382144,0.94446979,4614.8,4614.7,0.9157]
[1758221382346,0.1947,4614.8,4614.7,0.9157]
[1758221382546,0.5002,4614.8,4614.7,0.9157]
[1758221383349,0.5002,4614.8,4614.7,0.5028]
[1758221383350,0.6951,4614.8,4614.7,0.5028]
[1758221383550,1.25001619,4614.8,4614.7,0.218]
[1758221384643,1.25001619,4614.8,4614.7,0.7208]
[1758221385248,0.55491619,4614.8,4614.7,0.9157]
[1758221385549,0.6951,4615.4,4615.3,0.2092]
[1758221385744,1.48109369,4615.4,4615.1,0.2936]
[1758221386046,0.6951,4615.2,4615.1,0.5028]
[1758221386247,1.24996438,4615.2,4615.1,0.5028]
[1758221387448,1.24996438,4615.2,4615.1,0.6977]
[1758221388246,0.55486438,4615.2,4615.1,0.6977]
[1758221388652,0.1947,4615.2,4615.1,0.6977]
[1758221388856,0.1167,4616.0,4615.1,0.6977]
[1758221389051,0.1184,4616.5,4615.1,0.6977]
[1758221389052,0.5004,4615.8,4615.7,0.1949]
[1758221389256,0.3055,4616.2,4615.8,0.2936]
[1758221389456,1.2478078,4616.1,4616.0,0.6977]
[1758221389754,0.3055,4616.7,4616.0,0.8254]
[1758221390052,0.3055,4616.7,4616.2,0.6977]
[1758221390253,0.2167,4616.3,4616.2,0.8497]
[1758221390454,0.022,4616.3,4616.2,0.8497]
[1758221391457,0.5002,4617.3,4617.2,0.4041]
[1758221391652,0.3055,4617.9,4617.3,0.2936]
[1758221391953,0.6951,4617.9,4617.8,0.6977]
[1758221392148,1.24710358,4617.9,4617.0,0.3457]
[1758221392354,0.6951,4617.8,4617.7,0.6977]
[1758221392548,0.1259,4618.0,4617.7,0.6977]
[1758221392753,0.5002,4617.9,4617.8,0.6977]
[1758221392948,0.6951,4617.9,4617.8,0.5028]
[1758221393255,0.6951,4617.9,4617.8,0.6977]
[1758221393450,0.6951,4617.9,4617.8,0.4041]
[1758221393750,0.301,4618.4,4617.8,0.4041]
[1758221393955,0.1259,4618.5,4617.5,0.1277]
[1758221393956,0.1976,4618.3,4618.2,0.6977]
[1758221394355,0.1259,4619.0,4618.3,0.2929]
[1758221394651,0.1976,4618.4,4618.3,0.6977]
[1758221394851,0.7028,4618.9,4618.8,0.2061]
[1758221395058,0.7028,4618.9,4618.8,0.499]
[1758221395357,0.7028,4619.3,4619.2,0.2061]
[1758221395546,0.301,4619.8,4619.2,0.6977]
[1758221395751,0.301,4619.8,4619.3,0.2929]
[1758221396057,0.6476,4619.4,4619.3,0.6977]
[1758221396355,0.45,4619.4,4619.3,0.6977]